bitfinex/quotes_ETHUSD_20251015
["timestamp","ask_amount","ask_price","bid_price","bid_amount"]
[1760508284899,2.9056,4127.7,4127.3,2.42284528]
[1760508285108,2.9056,4127.7,4127.4,0.1208]
[1760508285311,2.184,4127.6,4127.4,2.54362602]
[1760508285741,2.184,4127.6,4127.4,0.1208]
[1760508286350,2.184,4127.6,4127.4,2.54357485]
[1760508286647,2.184,4127.6,4127.4,0.1208]
[1760508286959,0.4366,4127.5,4127.4,0.1208]
[1760508287555,0.72716,4127.5,4126.9,2.42311233]
[1760508287733,2.9036,4127.5,4126.9,2.42311233]
[1760508288950,4.88977975,4127.5,4126.6,1.92]
[1760508289152,0.4366,4127.4,4126.3,2.42342473]
[1760508289361,2.467,4127.5,4126.0,13.50238314]
[1760508289362,0.4366,4127.3,4126.1,1.92]
[1760508289665,0.4366,4127.3,4124.8,2.71573866]
[1760508289666,0.2223,4126.4,4125.4,13.50238314]
[1760508289953,2.9046,4126.3,4125.6,2.42388704]
[1760508290163,2.9046,4126.3,4125.6,2.42388852]
[1760508290327,0.44024143,4126.2,4125.6,2.42388852]
[1760508290515,2.9046,4126.3,4125.5,2.42389197]
[1760508290837,0.2223,4125.6,4125.1,2.42413294]
[1760508291019,2.468,4125.5,4124.3,1.92]
[1760508291354,0.6589,4125.6,4124.5,1.92]
[1760508291547,0.6589,4125.6,4124.3,1.92]
[1760508291548,2.468,4125.4,4124.3,1.92]
[1760508291721,2.468,4125.4,4124.9,2.42427848]
[1760508291927,0.4366,4125.3,4124.9,2.42427848]
[1760508292126,0.4366,4125.2,4124.7,2.42440471]
[1760508292371,2.468,4125.4,4124.4,1.54223831]
[1760508292372,0.4366,4125.1,4124.4,1.54223831]
[1760508292660,0.4366,4125.1,4124.2,13.50238314]
[1760508292661,2.64668496,4124.8,4123.0,13.50238314]
[1760508292842,2.9205,4124.7,4123.9,2.42488583]
[1760508293042,0.4525,4124.6,4123.1,1.35023831]
[1760508293262,0.4525,4124.5,4123.2,15.42238314]
[1760508293425,2.468,4124.4,4124.0,2.42478699]
[1760508293756,2.468,4124.4,4124.1,2.42474109]
[1760508294363,2.468,4124.4,4124.2,2.42470505]
[1760508295351,4.652,4124.3,4124.2,2.42470505]
[1760508296946,2.468,4124.3,4124.0,2.42477191]
[1760508297320,2.468,4124.3,4124.1,2.42476065]
[1760508297525,2.468,4124.3,4124.2,0.1208]
[1760508297949,2.9205,4124.3,4124.2,0.1208]
[1760508299234,3.21255,4124.3,4123.5,2.42512001]
[1760508299437,5.63723638,4124.3,4124.0,0.1208]
[1760508299644,0.4525,4124.2,4123.2,2.42530073]
[1760508299963,0.4525,4124.1,4123.7,0.1208]
[1760508300167,2.467,4124.0,4123.7,2.54579266]
[1760508300378,0.4525,4124.5,4123.8,0.02424947]
[1760508300379,2.467,4123.9,4123.8,0.02424947]
[1760508300540,0.2223,4124.8,4124.6,2.42444192]
[1760508300739,0.2223,4124.8,4123.7,0.25457927]
[1760508300740,2.467,4124.7,4124.5,2.42451637]
[1760508300964,0.4525,4124.6,4124.4,2.42457473]
[1760508301167,0.4525,4125.1,4123.7,2.17457927]
[1760508301487,0.6748,4125.6,4124.8,13.50238314]
[1760508301650,0.811,4125.5,4124.3,1.92]
[1760508301849,0.4525,4125.4,4124.3,1.92]
[1760508302050,0.811,4125.5,4124.3,1.92]
[1760508302380,0.4525,4125.3,4123.8,1.75969624]
[1760508302582,2.42429355,4125.0,4124.1,2.42472581]
[1760508302790,5.34481691,4124.9,4123.8,2.42491385]
[1760508303087,2.42452933,4124.6,4123.7,2.42498334]
[1760508303291,0.2349,4123.8,4123.6,2.42505582]
[1760508303570,0.2349,4123.8,4123.1,1.92]
[1760508303571,0.4525,4124.7,4124.0,2.4247761]
[1760508303776,2.468,4124.6,4124.0,2.4247761]
[1760508304452,2.468,4124.5,4124.3,2.42460448]
[1760508304653,2.55051642,4125.2,4124.2,13.50238314]
[1760508304654,0.57885,4125.2,4124.2,13.50238314]
[1760508304857,2.468,4125.1,4124.5,2.424479]
[1760508305058,2.468,4125.1,4124.6,2.42443653]
[1760508305258,1.5445,4125.0,4124.7,2.42436356]
[1760508305577,4.652,4125.0,4124.3,1.92]
[1760508305753,0.2349,4124.8,4124.5,2.4245278]
[1760508305954,2.4239651,4125.5,4124.3,1.92]
[1760508305955,3.56,4124.7,4124.4,2.42459509]
[1760508306158,3.56,4124.7,4124.5,2.42447845]
[1760508306472,3.56,4124.7,4124.3,4.34465118]
[1760508306473,3.56,4124.7,4124.6,2.42447752]
[1760508306777,2.9205,4124.7,4123.7,1.92]
[1760508307079,2.9205,4124.7,4124.0,2.42477928]
[1760508307080,0.4525,4124.6,4124.0,2.42477928]
[1760508307280,0.4525,4124.6,4124.1,2.42476882]
[1760508307476,0.2349,4124.9,4124.3,2.42460875]
[1760508307780,2.468,4124.8,4124.3,2.42460875]
[1760508307948,0.4525,4124.7,4124.3,2.42460875]
[1760508308374,0.4525,4124.6,4122.9,2.42547721]
[1760508308573,2.8770363,4124.5,4123.6,2.42502343]
[1760508308781,2.87709997,4124.4,4123.7,2.42498478]
[1760508308976,2.468,4124.3,4123.5,1.92]
[1760508309359,2.468,4124.2,4123.6,2.44931612]
[1760508309680,2.468,4124.1,4124.0,2.42483026]
[1760508309879,0.4504,4124.8,4124.3,2.42463159]
[1760508310177,2.468,4124.7,4124.4,2.42459283]
[1760508310370,2.9184,4124.7,4124.4,2.42459283]
[1760508310570,0.4504,4124.7,4124.4,2.42459283]
[1760508310772,2.468,4124.6,4124.4,2.42459283]
[1760508311870,2.468,4124.6,4124.5,2.4245363]
[1760508312275,2.9184,4124.6,4124.3,2.54543342]
[1760508312664,2.9184,4124.6,4124.4,2.42459503]
[1760508313079,2.468,4124.6,4124.3,0.1208]
[1760508313259,2.468,4124.6,4124.5,2.4245363]
[1760508313652,2.468,4124.6,4124.4,2.42457617]
[1760508313879,2.468,4124.6,4124.3,2.54543632]
[1760508314283,0.2349,4124.9,4124.3,2.54543632]
[1760508314590,2.9174,4124.8,4124.3,0.1208]
[1760508314905,0.2223,4126.4,4125.1,2.42417897]
[1760508314906,0.4504,4125.5,4125.1,2.42417897]
[1760508315212,0.4504,4125.5,4125.0,2.42419623]
[1760508315365,1.092,4125.4,4124.9,2.42430119]
[1760508315570,4.0094,4125.3,4125.0,2.42423339]
[1760508315767,3.559,4125.3,4124.8,0.1208]
[1760508316096,0.4504,4125.2,4124.8,2.54515758]
[1760508316296,3.20880001,4125.3,4124.8,2.54515758]
[1760508316469,0.4504,4125.1,4124.8,2.54515758]
[1760508316668,0.4504,4125.1,4124.9,2.42429477]
[1760508316870,2.467,4125.3,4125.1,2.42415823]
[1760508318184,2.467,4125.3,4125.0,2.42422673]
[1760508318514,0.4504,4125.2,4124.8,0.1208]
[1760508318692,0.219,4124.9,4124.8,0.1208]
[1760508318907,2.685,4124.9,4124.8,0.1208]
[1760508319208,3.1354,4124.9,4124.3,0.1208]
[1760508319367,0.56804476,4124.8,4124.3,0.1208]
[1760508319568,0.56804476,4124.8,4124.3,2.54543291]
[1760508319792,0.4504,4124.7,4124.5,2.42451345]
[1760508320102,0.4504,4124.7,4124.3,0.1208]
[1760508320103,2.685,4124.9,4124.6,2.42443393]
[1760508320395,2.685,4124.9,4124.7,2.42441044]
[1760508320600,2.685,4124.9,4124.4,2.42459509]
[1760508320601,2.685,4124.9,4124.6,2.42446555]
[1760508321894,2.685,4124.9,4124.5,2.42452246]
[1760508322088,0.4504,4124.8,4124.3,0.1208]
[1760508322289,0.4504,4124.8,4122.9,2.42546856]
[1760508322290,0.6336,4124.6,4122.4,0.243]
[1760508322602,2.42475707,4124.2,4123.3,2.42520389]
[1760508322800,2.466,4124.1,4123.4,2.42513582]
[1760508322969,3.40546539,4124.1,4123.4,2.42513582]
[1760508323174,3.40546539,4124.1,4123.5,2.42510124]
[1760508323393,3.40546539,4124.1,4123.3,2.42519343]
[1760508323704,0.219,4123.6,4123.2,1.92]
[1760508323877,2.466,4123.5,4122.1,12.87675596]
[1760508324078,2.9164,4123.5,4122.2,3.71356468]
[1760508324404,2.9164,4123.5,4122.9,2.42546108]
[1760508324704,2.466,4123.5,4123.4,0.002]
[1760508325000,5.52472428,4123.5,4123.4,0.002]
[1760508325176,6.34159769,4123.5,4123.4,0.002]
[1760508325377,8.97599769,4123.5,4123.4,0.002]
[1760508325578,7.88399769,4123.5,4123.4,0.002]
[1760508327077,6.79199769,4123.5,4123.4,0.002]
[1760508328072,7.17236205,4123.5,4123.4,0.002]
[1760508329506,1.19723777,4123.5,4123.4,0.002]
[1760508329703,2.465,4123.5,4123.4,0.002]
[1760508329999,2.9154,4123.5,4123.4,0.002]
[1760508330208,5.34052428,4123.5,4123.4,0.002]
[1760508331906,2.465,4123.5,4123.4,0.002]
[1760508332280,2.42512428,4123.5,4123.4,0.002]
[1760508332499,5.89247226,4123.5,4123.4,0.002]
[1760508333793,6.52607226,4123.5,4123.4,0.002]
[1760508334207,6.90643298,4123.5,4123.4,0.002]
[1760508334783,3.64954798,4123.5,4123.4,0.002]
[1760508334983,3.61067226,4123.5,4123.4,0.002]
[1760508335214,3.64954798,4123.5,4123.4,0.002]
[1760508335517,4.70367226,4123.5,4123.4,0.002]
[1760508335734,7.16767226,4123.5,4123.4,0.002]
[1760508336025,4.06107226,4123.5,4123.4,0.002]
[1760508336217,0.55194798,4123.5,4123.4,0.002]
[1760508336521,2.464,4123.5,4123.4,0.002]
[1760508337418,4.88912428,4123.5,4123.4,0.002]
[1760508337992,2.42501709,4123.7,4123.4,0.002]
[1760508337993,0.6336,4123.7,4123.4,0.002]
[1760508338219,2.464,4123.6,4123.4,0.002]
[1760508340306,2.64400185,4123.8,4123.4,0.002]
[1760508340505,3.01592408,4123.7,4123.4,0.002]
[1760508340705,2.463,4123.6,4123.4,0.002]
[1760508341125,0.38036497,4124.2,4123.4,0.002]
[1760508341324,1.141,4124.1,4123.8,2.42489351]
[1760508341625,0.38029406,4124.7,4123.7,2.42499179]
[1760508341827,0.38029406,4124.7,4123.7,0.24269918]
[1760508342031,0.22,4124.9,4123.4,0.002]
[1760508342326,0.4535,4124.7,4123.9,2.42485725]
[1760508342492,0.4535,4124.7,4124.0,2.42482761]
[1760508342691,0.001,4124.3,4124.1,2.42475092]
[1760508342920,2.464,4124.2,4124.1,2.42475092]
[1760508343521,2.464,4124.2,4124.0,2.42481951]
[1760508343819,2.464,4124.2,4123.9,2.42488906]
[1760508344024,2.464,4124.2,4123.5,2.42512428]
[1760508344222,2.464,4124.2,4124.1,2.42477146]
[1760508345127,2.464,4124.2,4123.6,0.24271243]
[1760508345423,2.464,4124.2,4123.2,2.42525459]
[1760508345424,2.186,4124.1,4123.2,2.42525459]
[1760508345724,2.186,4124.1,4124.0,2.42483026]
[1760508346228,2.186,4124.1,4122.6,2.42562638]
[1760508346229,1.5465,4124.1,4122.8,1.92]
[1760508346426,1.093,4124.1,4123.8,2.42494484]
[1760508347397,2.464,4124.2,4123.7,2.42498814]
[1760508347625,2.464,4124.2,4123.5,2.42507378]
[1760508347828,2.464,4124.2,4123.4,0.002]
[1760508347999,2.464,4124.2,4123.7,2.54579855]
[1760508348195,2.464,4124.2,4123.8,2.42494075]
[1760508348395,2.9175,4124.2,4123.8,2.42494075]
[1760508348611,2.464,4124.2,4123.7,0.1208]
[1760508348817,2.464,4124.2,4123.4,0.002]
[1760508349011,2.464,4124.2,4124.0,2.42482449]
[1760508349302,2.464,4124.2,4123.9,0.1208]
[1760508349501,2.9175,4124.2,4123.9,0.1208]
[1760508349999,2.464,4124.2,4123.9,0.1208]
[1760508350240,2.464,4124.2,4124.0,2.4247746]
[1760508350837,2.464,4124.2,4123.9,0.1208]
[1760508351002,0.4535,4124.1,4123.4,0.002]
[1760508351198,0.4535,4124.1,4123.7,0.1208]
[1760508351398,0.4535,4124.1,4123.7,2.5458049]
[1760508352132,0.001,4124.3,4123.4,0.002]
[1760508352305,0.001,4124.3,4124.2,2.42471267]
[1760508352500,0.901,4124.3,4124.2,2.92174279]
[1760508353300,0.901,4124.3,4124.2,0.49703012]
[1760508353538,0.901,4124.3,4124.2,2.42471267]
[1760508353998,0.901,4124.3,4124.0,2.54558116]
[1760508353999,0.901,4124.3,4124.0,0.1208]
[1760508354399,3.32567223,4124.3,4124.0,0.1208]
[1760508354606,0.4306,4124.2,4124.0,0.1208]
[1760508355013,0.4306,4124.1,4124.0,0.1208]
[1760508355212,1.5236,4124.1,4124.0,0.1208]
[1760508355413,2.6166,4124.1,4123.4,0.002]
[1760508355629,5.04137914,4124.1,4123.7,0.1208]
[1760508355935,0.2219,4123.8,4123.7,0.1208]
[1760508356131,2.6839,4123.8,4123.7,0.1208]
[1760508356520,2.6839,4123.8,4123.4,0.1228]
[1760508356521,3.1145,4123.8,4123.4,0.1228]
[1760508356836,0.4306,4123.7,4123.4,0.1228]
[1760508357214,2.6839,4123.8,4123.4,0.1228]
[1760508358115,0.4306,4123.7,4123.4,0.1228]
[1760508358431,0.4306,4123.6,4123.4,0.002]
[1760508358834,0.55394118,4123.7,4123.4,0.002]
[1760508359005,0.4306,4123.5,4123.4,0.002]
[1760508359932,2.85572428,4123.5,4123.4,0.002]
[1760508362070,0.4306,4123.5,4123.4,0.002]
[1760508362270,2.461,4123.5,4123.4,0.002]
[1760508363347,2.8916,4123.5,4123.4,0.002]
[1760508363545,5.62807428,4123.5,4123.4,0.002]
[1760508364490,6.26167428,4123.5,4123.4,0.002]
[1760508364769,6.26167428,4123.5,4122.9,0.002]
[1760508364770,3.05901838,4123.0,4122.9,0.002]
[1760508365072,3.05937139,4122.4,4121.3,2.42641773]
[1760508365239,8.25587778,4122.4,4121.3,2.42641773]
[1760508365567,8.68647778,4122.4,4121.3,2.42637307]
[1760508365878,6.50047778,4122.4,4121.0,0.002]
[1760508366352,6.50047778,4122.4,4121.0,2.42859452]
[1760508366553,6.50047778,4122.4,4121.1,2.4265136]
[1760508366756,6.50047778,4122.4,4121.3,2.42640649]
[1760508367136,6.50047778,4122.4,4121.0,2.42859161]
[1760508367137,6.50047778,4122.4,4121.0,0.002]
[1760508367329,8.42047778,4122.4,4121.0,0.002]
[1760508367530,2.42600679,4122.0,4121.0,0.002]
[1760508367770,0.6336,4122.1,4121.0,0.002]
[1760508367771,2.4265366,4121.1,4121.0,0.002]
[1760508368066,5.5221366,4121.1,4121.0,0.002]
[1760508368238,5.9527366,4121.1,4121.0,0.002]
[1760508369640,2.462,4121.1,4121.0,0.002]
[1760508369844,2.9231,4121.1,4121.0,0.002]
[1760508370060,6.2755466,4121.1,4121.0,0.002]
[1760508373459,3.38791,4121.1,4121.0,0.002]
[1760508373678,5.13541,4121.1,4119.0,2.42974286]
[1760508373844,2.42705181,4120.3,4119.1,2.42769041]
[1760508374164,1.3288,4121.0,4119.1,2.42769041]
[1760508374165,2.42713878,4120.1,4119.1,0.0102]
[1760508374365,2.464,4120.0,4119.1,2.42771479]
[1760508374585,2.464,4120.0,4119.5,2.42742291]
[1760508374780,2.464,4120.0,4119.0,0.002]
[1760508374781,2.464,4120.0,4119.8,2.42727761]
[1760508375066,2.464,4120.0,4119.0,0.002]
[1760508375067,2.464,4120.0,4119.7,2.42734872]
[1760508375313,2.186,4119.9,4119.6,2.42741825]
[1760508375444,2.464,4119.8,4119.6,2.42741825]
[1760508375646,2.464,4119.8,4119.7,2.42736121]
[1760508376040,0.24270518,4120.2,4119.6,2.42740972]
[1760508376263,2.464,4120.1,4119.4,2.42752199]
[1760508376463,2.42711412,4120.2,4119.3,2.42755274]
[1760508376787,2.464,4120.1,4119.6,2.42741053]
[1760508376968,2.464,4120.1,4119.4,2.42753799]
[1760508377154,2.464,4120.1,4119.0,0.002]
[1760508377363,0.2464,4120.0,4119.6,2.42740909]
[1760508377667,0.2464,4120.0,4119.7,2.42735673]
[1760508377865,2.464,4119.9,4119.1,0.0102]
[1760508378161,2.42619972,4121.7,4119.3,2.42754709]
[1760508378365,2.426835,4120.6,4119.7,2.42731223]
[1760508378541,2.464,4120.5,4119.7,2.42731223]
[1760508378742,2.464,4120.5,4119.7,2.42733306]
[1760508378940,0.53519735,4120.4,4119.7,2.42733306]
[1760508379177,0.53519735,4120.4,4119.5,2.42747906]
[1760508379178,0.53519735,4120.4,4119.9,2.42723489]
[1760508379404,0.53519735,4120.4,4119.8,2.42728806]
[1760508379787,0.53519735,4120.4,4119.4,0.0102]
[1760508379788,0.53519735,4120.4,4120.0,2.42717212]
[1760508380709,0.53519735,4120.4,4119.4,0.0102]
[1760508380896,0.53519735,4120.4,4120.0,2.42715592]
[1760508381592,0.53519735,4120.4,4119.8,0.002]
[1760508382098,0.53519735,4120.4,4119.9,2.42719705]
[1760508382498,0.53519735,4120.4,4119.8,2.4292863]
[1760508382699,0.80712974,4120.3,4119.8,0.002]
[1760508382890,2.463,4120.2,4119.8,0.002]
[1760508383085,2.463,4120.2,4119.9,2.42724274]
[1760508383293,2.463,4120.2,4119.8,2.42928756]
[1760508383615,2.463,4120.2,4119.8,0.002]
[1760508383786,2.74390297,4120.2,4119.9,2.4272335]
[1760508383985,2.74390297,4120.2,4119.8,0.002]
[1760508383986,2.463,4120.2,4119.8,0.002]
[1760508384192,2.463,4120.2,4118.1,0.002]
[1760508384193,2.42800951,4118.6,4118.1,0.002]
[1760508384379,0.6336,4118.3,4118.1,0.002]
[1760508384572,5.8620619,4118.6,4116.2,0.002]
[1760508384573,2.42865816,4117.5,4116.2,0.002]
[1760508384798,8.92265339,4117.5,4116.2,0.002]
[1760508384996,7.93935816,4117.5,4116.2,0.002]
[1760508385385,10.12735816,4117.5,4116.2,0.002]
[1760508386103,9.99385339,4117.5,4116.2,0.002]
[1760508386305,11.40596203,4117.5,4116.2,0.002]
[1760508387417,4.98273012,4116.7,4116.2,0.002]
[1760508387717,7.47873012,4116.7,4116.2,0.002]
[1760508387881,8.96365869,4116.7,4116.2,0.002]
[1760508388086,11.45591038,4116.7,4116.2,0.002]
[1760508388288,10.43208181,4116.7,4116.2,0.002]
[1760508389002,10.81310991,4116.7,4116.2,0.002]
[1760508391223,10.81210991,4116.7,4116.2,0.002]
[1760508391520,2.42930716,4116.4,4116.2,0.002]
[1760508391824,5.55790716,4116.4,4116.2,0.002]
[1760508392116,7.93900716,4116.4,4116.2,0.002]
[1760508392518,8.3200511,4116.4,4116.2,0.002]
[1760508392721,8.3200511,4116.4,4115.8,1e-08]
[1760508392722,2.5536,4116.3,4115.8,1e-08]
[1760508392920,0.6336,4115.6,4115.5,0.002]
[1760508393084,7.47737937,4115.6,4115.5,0.002]
[1760508393425,2.43066527,4114.1,4113.8,0.141]
[1760508393714,5.56026527,4114.1,4113.8,0.141]
[1760508393924,6.35934877,4114.1,4113.3,0.143]
[1760508395430,9.01044877,4114.1,4113.3,0.143]
[1760508396811,8.54934877,4114.1,4113.3,0.143]
[1760508396989,7.45434877,4114.1,4113.3,0.143]
[1760508397190,6.82044877,4114.1,4113.3,0.143]
[1760508398016,6.35934877,4114.1,4113.3,0.143]
[1760508399222,6.82044877,4114.1,4114.0,1.627]
[1760508400105,6.35934877,4114.1,4114.0,1.627]
[1760508400587,3.86334877,4114.1,4114.0,1.627]
[1760508400792,2.494,4114.1,4114.0,1.627]
[1760508401530,4.92566527,4114.1,4114.0,1.627]
[1760508401755,5.55926527,4114.1,4114.0,1.627]
[1760508405228,6.65426527,4114.1,4114.0,1.627]
[1760508405540,7.74926527,4114.1,4114.0,1.627]
[1760508405715,8.1355472,4114.1,4114.0,1.627]
[1760508406542,7.6722472,4114.1,4114.0,1.627]
[1760508406721,4.14458193,4114.1,4114.0,1.627]
[1760508407042,3.1266,4114.1,4114.0,1.627]
[1760508407556,5.55726527,4114.1,4114.0,1.627]
[1760508409415,6.02056527,4114.1,4114.0,1.627]
[1760508413955,8.32178935,4114.1,4114.0,1.627]
[1760508415324,10.51178935,4114.1,4114.0,1.627]
[1760508415630,11.80602353,4114.1,4114.0,1.627]
[1760508416231,10.71102353,4114.1,4114.0,1.627]
[1760508416882,9.61602353,4114.1,4114.0,1.627]
[1760508418386,9.61602353,4114.1,4114.0,0.002]
[1760508419285,9.61102353,4114.1,4114.0,0.002]
[1760508420852,6.65972353,4114.1,4114.0,0.002]
[1760508421054,4.10612353,4114.1,4114.0,0.002]
[1760508421268,5.29988935,4114.1,4114.0,0.002]
[1760508421787,5.93348935,4114.1,4114.0,0.002]
[1760508421957,8.30178935,4114.1,4114.0,0.002]
[1760508424659,2.81188935,4114.1,4114.0,0.002]
[1760508424857,2.43066527,4114.1,4114.0,0.002]
[1760508425051,2.91678704,4114.1,4114.0,0.002]
[1760508425294,7.10966527,4114.1,4114.0,0.145]
[1760508426083,7.10966527,4114.1,4114.0,0.002]
[1760508426291,7.74326527,4114.1,4114.0,0.145]
[1760508426587,7.74326527,4114.1,4114.0,0.002]
[1760508426884,21.44938139,4114.1,4114.0,0.002]
[1760508427073,4.98456071,4113.6,4113.5,0.002]
[1760508427276,7.47456071,4113.6,4113.5,0.002]
[1760508427589,7.92286071,4113.6,4113.5,0.002]
[1760508427770,5.43286071,4113.6,4113.5,0.002]
[1760508427976,7.47356071,4113.6,4113.5,0.002]
[1760508428160,8.46400486,4113.6,4113.5,0.002]
[1760508428557,8.84530723,4113.6,4113.5,0.002]
[1760508428854,6.35630723,4113.6,4113.5,0.002]
[1760508429188,8.84530723,4113.6,4113.5,0.002]
[1760508429762,2.00534652,4113.6,4113.5,0.002]
[1760508429964,1.01490237,4113.6,4113.5,0.002]
[1760508430166,17.43687326,4113.6,4108.9,0.731462]
[1760508430375,13.52981612,4111.5,4109.0,0.286]
[1760508430685,0.04623989,4113.0,4109.7,4.35326763]
[1760508430686,2.504,4111.4,4109.7,4.35326763]
[1760508430884,0.6336,4112.4,4109.6,13.52981612]
[1760508430885,2.504,4111.3,4110.0,1.92]
[1760508431088,2.504,4111.3,4110.3,2.43291243]
[1760508431288,2.504,4111.3,4111.1,2.43243136]
[1760508431487,2.504,4111.3,4111.2,0.143]
[1760508431789,2.504,4111.3,4111.2,2.57537984]
[1760508432986,2.504,4111.3,4111.2,0.143]
[1760508433391,2.504,4111.3,4111.2,4.49537984]
[1760508433590,2.504,4111.3,4111.2,5.18816694]
[1760508435455,4.2336,4111.3,4109.0,0.143]
[1760508435595,0.6336,4110.0,4109.0,0.143]
[1760508435895,0.6336,4109.8,4109.0,0.143]
[1760508436063,2.43362293,4109.1,4106.3,12.95855806]
[1760508436265,2.521,4109.0,4106.5,2.43516376]
[1760508436573,0.6336,4108.8,4106.8,2.43498587]
[1760508436896,2.521,4108.7,4108.1,0.1216]
[1760508437910,2.521,4108.7,4103.4,2.67670225]
[1760508437911,2.521,4108.7,4107.8,2.43438502]
[1760508438191,2.521,4108.7,4107.8,2.43434452]
[1760508438383,2.521,4108.7,4107.9,2.43433204]
[1760508438579,2.521,4108.7,4108.0,2.43426824]
[1760508438884,2.521,4108.7,4106.6,2.43510446]
[1760508439083,2.521,4108.7,4108.0,2.4342634]
[1760508439282,2.521,4108.7,4107.9,2.43433298]
[1760508440183,0.2336,4109.2,4107.9,0.67888402]
[1760508440373,2.521,4109.1,4108.3,2.43406694]
[1760508440577,2.521,4109.1,4108.1,2.43415846]
[1760508440874,2.521,4109.1,4108.3,2.43407792]
[1760508441075,2.521,4109.1,4107.1,1.92]
[1760508441076,2.521,4109.1,4108.1,2.4341561]
[1760508441282,2.521,4109.1,4108.2,2.43414989]
[1760508441493,2.521,4109.1,4108.3,2.43408398]
[1760508442167,2.521,4109.1,4107.5,2.43456617]
[1760508442363,2.43386345,4108.7,4107.6,0.24345662]
[1760508442586,2.43386345,4108.7,4105.9,0.12095454]
[1760508442587,2.521,4108.6,4106.2,1.92]
[1760508442786,0.76216116,4109.1,4106.6,1.92]
[1760508443072,4.95368711,4109.0,4108.0,2.43422531]
[1760508443270,2.43375299,4108.9,4108.0,2.43422531]
[1760508443511,2.43374139,4108.9,4107.9,2.43430013]
[1760508443798,2.9934,4109.0,4108.0,2.43424524]
[1760508444098,2.9934,4109.0,4107.5,2.43454032]
[1760508444262,0.3227,4108.9,4108.1,2.43416016]
[1760508444666,0.3227,4108.9,4108.2,2.43415454]
[1760508445196,2.43352114,4109.3,4107.5,0.24345403]
[1760508445197,2.522,4108.8,4107.5,0.24345403]
[1760508445366,2.522,4108.7,4108.6,2.43387002]
[1760508447766,2.522,4108.7,4108.6,4.47547002]
[1760508451072,2.522,4108.7,4108.6,4.44753392]
[1760508452293,2.522,4108.7,4108.6,4.47551909]
[1760508452799,2.522,4108.7,4108.6,0.1216]
[1760508452984,3.27096,4108.7,4108.2,2.434107]
[1760508453186,2.79756,4108.7,4108.3,0.1216]
[1760508453382,2.55558529,4108.5,4108.0,0.002]
[1760508453696,0.1216,4108.5,4108.0,0.002]
[1760508453901,0.4734,4108.4,4108.0,0.002]
[1760508454085,2.72483661,4108.3,4108.0,0.002]
[1760508454292,2.43416297,4108.2,4108.0,0.002]
[1760508454488,4.95221533,4108.1,4108.0,0.002]
[1760508454801,2.518,4108.1,4108.0,0.002]
[1760508455107,5.42561533,4108.1,4108.0,0.002]
[1760508455400,8.4346547,4108.1,4108.0,0.002]
[1760508455771,9.0682547,4108.1,4108.0,0.002]
[1760508457189,7.9712547,4108.1,4108.0,0.002]
[1760508457973,5.53703937,4108.1,4108.0,0.002]
[1760508458174,7.9712547,4108.1,4108.0,0.002]
[1760508458602,5.53703937,4108.1,4108.0,0.002]
[1760508459181,6.8742547,4108.1,4108.0,0.002]
[1760508459505,4.44003937,4108.1,4108.0,0.002]
[1760508459802,3.33303937,4108.1,4108.0,0.002]
[1760508460008,2.518,4108.1,4108.0,0.002]
[1760508460777,2.518,4108.1,4108.0,2.43627458]
[1760508461202,2.518,4108.1,4108.0,2.38673307]
[1760508461777,2.518,4108.1,4107.5,0.002]
[1760508461976,2.518,4108.1,4107.8,2.43439075]
[1760508462175,2.518,4108.1,4107.6,2.43450406]
[1760508462176,0.4293,4108.0,4107.6,2.43450406]
[1760508462600,2.518,4108.1,4107.7,2.43443729]
[1760508462917,2.518,4108.1,4107.5,0.002]
[1760508463081,2.518,4108.1,4108.0,2.43427458]
[1760508463991,2.518,4108.1,4108.0,2.55587458]
[1760508465374,4.712,4108.1,4108.0,2.55587458]
[1760508465782,3.615,4108.1,4108.0,2.55587458]
[1760508467614,2.518,4108.1,4108.0,4.97489746]
[1760508467818,2.518,4108.1,4108.0,2.43427458]
[1760508469407,0.2336,4109.9,4108.0,4.35427458]
[1760508469615,2.513,4109.8,4108.4,2.43403758]
[1760508469794,2.9423,4109.8,4109.1,2.43357553]
[1760508470111,0.4293,4109.7,4109.1,2.43357553]
[1760508470312,0.4293,4109.7,4109.3,2.43346418]
[1760508470822,0.4293,4109.6,4109.4,2.43344191]
[1760508471020,0.4293,4109.6,4109.3,2.43348894]
[1760508471187,2.513,4109.8,4109.5,2.43333415]
[1760508471589,0.4293,4109.7,4109.4,2.43343713]
[1760508471820,2.513,4109.8,4109.4,2.43343147]
[1760508472022,0.4293,4109.6,4109.4,2.43343147]
[1760508472220,0.4293,4109.7,4109.5,2.43336249]
[1760508472394,0.4303,4109.7,4108.7,2.43381076]
[1760508472716,0.4303,4109.7,4109.3,2.43345906]
[1760508472917,0.001,4109.7,4109.4,2.43343322]
[1760508473141,0.4293,4109.6,4109.3,2.43349772]
[1760508473432,0.4293,4109.5,4108.8,2.43374243]
[1760508473648,0.2154,4108.9,4108.7,2.43384836]
[1760508473817,2.9403,4108.8,4108.0,0.002]
[1760508474258,2.9403,4108.8,4108.7,2.43382201]
[1760508475252,4.0373,4108.8,4108.7,2.43382201]
[1760508475546,4.0373,4108.8,4108.0,0.002]
[1760508475547,5.44987,4108.8,4108.0,0.002]
[1760508475752,5.1343,4108.8,4108.0,0.002]
[1760508475928,5.1343,4108.8,4108.5,2.43393361]
[1760508476237,0.4331,4108.7,4108.5,2.43393361]
[1760508477857,2.511,4108.8,4108.0,0.002]